bitfinex/quotes_BTCUSD_20220218
["timestamp","ask_amount","ask_price","bid_price","bid_amount"]
[1645225823238,0.25,40049.0,40046.0,0.14625834]
[1645225823690,0.335253,40048.0,40046.0,0.14625834]
[1645225824290,0.25,40049.0,40046.0,0.14625834]
[1645225825492,0.335253,40048.0,40046.0,0.14625834]
[1645225825891,0.25,40049.0,40046.0,0.14625834]
[1645225826892,0.335253,40048.0,40046.0,0.14625834]
[1645225827093,0.25,40049.0,40046.0,0.14625834]
[1645225827940,0.335253,40048.0,40046.0,0.14625834]
[1645225828239,0.25,40049.0,40047.0,0.29653995]
[1645225828438,0.25,40049.0,40048.0,0.4746013]
[1645225829038,0.25,40049.0,40048.0,0.40175589]
[1645225830844,0.25,40049.0,40048.0,0.88700889]
[1645225834293,0.31786717,40056.0,40048.0,0.88700889]
[1645225834493,0.00031929,40055.0,40051.0,0.26815304]
[1645225834934,0.31786717,40057.0,40056.0,0.22216599]
[1645225835736,0.31818646,40058.0,40056.0,0.22216599]
[1645225835939,0.335253,40057.0,40056.0,0.22216599]
[1645225836135,0.65312017,40057.0,40056.0,0.22216599]
[1645225836734,0.31786717,40057.0,40056.0,0.22216599]
[1645225838791,0.65312017,40057.0,40056.0,0.22216599]
[1645225839790,0.31786717,40057.0,40056.0,0.22216599]
[1645225841591,0.31786717,40057.0,40053.0,0.2392747]
[1645225841792,0.56786717,40057.0,40053.0,0.2392747]
[1645225842636,0.56786717,40057.0,40056.0,0.24480664]
[1645225843237,0.56786717,40057.0,40053.0,0.2392747]
[1645225843438,0.56786717,40057.0,40053.0,0.0999264]
[1645225844542,0.56786717,40057.0,40053.0,0.33255849]
[1645225846192,0.56786717,40057.0,40056.0,0.1393483]
[1645225846697,0.56786717,40057.0,40053.0,0.33255849]
[1645225847092,0.25,40057.0,40053.0,0.33255849]
[1645225847293,0.25031929,40057.0,40054.0,0.1393483]
[1645225847693,0.07489585,40056.0,40054.0,0.1393483]
[1645225847993,0.07521514,40056.0,40054.0,0.1393483]
[1645225848194,0.07521514,40056.0,40053.0,0.23263209]
[1645225848994,0.07521514,40056.0,40055.0,0.43588825]
[1645225849204,0.07489585,40056.0,40055.0,0.82114125]
[1645225849395,0.07489585,40056.0,40055.0,0.97114125]
[1645225849595,0.25,40057.0,40056.0,0.1497917]
[1645225849850,0.25,40057.0,40056.0,0.4850447]
[1645225850351,0.25,40057.0,40056.0,0.5850447]
[1645225851355,0.25,40057.0,40056.0,0.8850447]
[1645225853151,0.25,40057.0,40056.0,0.8846597]
[1645225853601,0.25,40057.0,40056.0,0.5846597]
[1645225853991,0.25,40057.0,40056.0,0.4846597]
[1645225854194,0.25,40057.0,40056.0,0.1494067]
[1645225854396,0.260219,40057.0,40056.0,0.4846597]
[1645225854593,0.25,40057.0,40056.0,0.4846597]
[1645225855395,0.25,40057.0,40056.0,0.1494067]
[1645225856797,0.25,40057.0,40056.0,0.4846597]
[1645225857742,0.25,40057.0,40056.0,0.624008]
[1645225857940,0.25,40057.0,40056.0,0.5346597]
[1645225858144,0.25,40057.0,40056.0,0.674008]
[1645225859943,0.25,40057.0,40056.0,0.4846597]
[1645225861196,0.25,40057.0,40056.0,0.82062155]
[1645225861396,0.25,40057.0,40056.0,0.4846597]
[1645225861794,0.25,40057.0,40056.0,0.6346597]
[1645225862994,0.25,40057.0,40056.0,0.4846597]
[1645225863895,0.25,40057.0,40056.0,0.1494067]
[1645225864295,0.25,40057.0,40056.0,0.4846597]
[1645225865736,0.25616204,40057.0,40056.0,0.4846597]
[1645225867135,0.25701954,40057.0,40056.0,0.4846597]
[1645225869594,0.25701954,40057.0,40056.0,0.7846597]
[1645225869794,0.25701954,40057.0,40056.0,0.8846597]
[1645225870200,0.25701954,40057.0,40056.0,0.5846597]
[1645225871196,0.2508575,40057.0,40056.0,0.5854538]
[1645225871597,0.2408575,40057.0,40056.0,0.92141565]
[1645225871996,0.2408575,40057.0,40056.0,1.1193602]
[1645225872842,0.1229552,40057.0,40056.0,1.45615468]
[1645225873041,0.1229552,40057.0,40056.0,1.55615468]
[1645225873242,0.1229552,40057.0,40056.0,2.32065468]
[1645225873444,0.1229552,40057.0,40056.0,1.55615468]
[1645225874644,0.1229552,40057.0,40056.0,2.32065468]
[1645225875543,0.1229552,40057.0,40056.0,2.32307713]
[1645225875943,0.1229552,40057.0,40056.0,1.55857713]
[1645225876791,0.1229552,40057.0,40056.0,1.27178265]
[1645225877790,0.1229552,40057.0,40056.0,1.17178265]
[1645225878191,0.1229552,40057.0,40056.0,1.02178265]
[1645225878591,0.1229552,40057.0,40056.0,0.8238381]
[1645225879192,0.1229552,40057.0,40056.0,1.1238381]
[1645225879691,0.010219,40061.0,40060.0,0.56805218]
[1645225879941,0.010219,40064.0,40060.0,1.01459213]
[1645225880141,0.010219,40064.0,40061.0,0.335253]
[1645225883696,0.001,40066.0,40062.0,0.635253]
[1645225884295,0.001,40066.0,40062.0,1.399753]
[1645225884499,0.001,40066.0,40062.0,1.499753]
[1645225885697,0.001,40066.0,40062.0,1.5005846]
[1645225886697,0.0052688,40067.0,40063.0,1.28695879]
[1645225886898,0.0052688,40067.0,40063.0,1.43695879]
[1645225887337,0.0052688,40067.0,40066.0,0.55564959]
[1645225887637,0.0052688,40067.0,40066.0,0.7351794]
[1645225887838,0.0052688,40067.0,40066.0,0.8351794]
[1645225888036,0.2552688,40067.0,40066.0,0.8351794]
[1645225888739,0.2552688,40067.0,40066.0,1.05408766]
[1645225889239,0.0052688,40067.0,40066.0,1.05408766]
[1645225890143,0.0052688,40067.0,40066.0,0.8351794]
[1645225890946,0.0052688,40067.0,40066.0,0.4351794]
[1645225891601,0.0052688,40067.0,40066.0,0.0999264]
[1645225892000,0.0052688,40067.0,40066.0,0.4351794]
[1645225893798,0.0052688,40067.0,40066.0,0.8351794]
[1645225895241,0.0052688,40067.0,40066.0,0.7351794]
[1645225895442,0.00826915,40067.0,40066.0,0.7351794]
[1645225896443,0.00826915,40067.0,40066.0,0.4344874]
[1645225897843,0.01848815,40067.0,40066.0,0.4344874]
[1645225898043,0.00826915,40067.0,40066.0,0.4344874]
[1645225898900,0.00826915,40067.0,40063.0,0.0098]
[1645225899102,0.335253,40066.0,40063.0,0.0098]
[1645225899295,0.24729274,40064.0,40063.0,0.0098]
[1645225899495,0.24729274,40064.0,40060.0,0.23279918]
[1645225899695,0.010219,40061.0,40060.0,0.23279918]
[1645225902850,0.07488253,40063.0,40061.0,0.335253]
[1645225903050,0.08510153,40063.0,40060.0,0.23279918]
[1645225903649,0.010219,40061.0,40060.0,0.23279918]
[1645225904853,0.010219,40061.0,40060.0,0.23212518]
[1645225905652,0.010219,40061.0,40060.0,0.2353202]
[1645225906892,0.07488253,40063.0,40060.0,0.2353202]
[1645225907294,0.08510153,40063.0,40060.0,0.2353202]
[1645225909496,0.010219,40062.0,40060.0,0.2353202]
[1645225909695,0.07488253,40063.0,40062.0,0.020438]
[1645225910352,0.24,40064.0,40062.0,0.020438]
[1645225910554,0.24,40064.0,40062.0,0.02203363]
[1645225910956,0.24,40064.0,40063.0,0.77044925]
[1645225911156,0.24,40064.0,40063.0,1.28938792]
[1645225911453,0.24,40064.0,40063.0,1.48733893]
[1645225912553,0.24,40064.0,40063.0,1.28938792]
[1645225912952,0.24,40064.0,40063.0,1.48729046]
[1645225914197,0.0003177,40066.0,40063.0,2.40179046]
[1645225914498,0.0055865,40067.0,40065.0,0.4746013]
[1645225914695,0.0055865,40067.0,40066.0,0.3]
[1645225914996,0.0052688,40067.0,40066.0,0.635253]
[1645225915195,0.0052688,40067.0,40066.0,0.83089445]
[1645225915393,0.0052688,40067.0,40066.0,0.93089445]
[1645225915795,0.0052688,40067.0,40066.0,1.12879699]
[1645225916095,0.0052688,40067.0,40066.0,0.93238994]
[1645225916595,0.0052688,40067.0,40066.0,0.7344874]
[1645225916796,0.0052688,40067.0,40066.0,0.4344874]
[1645225917843,0.0052688,40067.0,40066.0,0.7344874]
[1645225918744,0.0052688,40067.0,40066.0,0.8344874]
[1645225919549,0.0052688,40067.0,40066.0,1.5989874]
[1645225919746,0.0052688,40067.0,40066.0,1.79686962]
[1645225920745,0.00827991,40067.0,40066.0,1.79686962]
[1645225921999,0.00827991,40067.0,40066.0,1.03236962]
[1645225923700,0.00827991,40067.0,40066.0,0.73236962]
[1645225923900,0.00827991,40067.0,40066.0,0.4344874]
[1645225925547,0.00827991,40067.0,40066.0,0.7344874]
[1645225929608,0.00827991,40067.0,40066.0,0.8344874]
[1645225930013,0.00827991,40067.0,40066.0,0.73237863]
[1645225930412,0.00827991,40067.0,40066.0,0.5344874]
[1645225930610,0.00827991,40067.0,40066.0,0.73237863]
[1645225930810,0.00827991,40067.0,40066.0,0.5344874]
[1645225931209,0.0052688,40067.0,40066.0,0.53518815]
[1645225932347,0.0052688,40067.0,40066.0,0.73307938]
[1645225932549,0.0052688,40067.0,40066.0,0.53518815]
[1645225932746,0.0052688,40067.0,40066.0,0.43518815]
[1645225932946,0.0052688,40067.0,40066.0,0.63307938]
[1645225933147,0.0052688,40067.0,40066.0,0.43518815]
[1645225935150,0.0052688,40067.0,40066.0,0.73518815]
[1645225935549,0.0052688,40067.0,40066.0,0.73536786]
[1645225936395,0.0052688,40067.0,40066.0,0.43536786]
[1645225938796,0.0052688,40067.0,40066.0,0.00088046]
[1645225938996,0.0052688,40067.0,40066.0,0.33613346]
[1645225939196,0.0052688,40067.0,40066.0,0.00088046]
[1645225939698,0.0035177,40068.0,40067.0,0.01053759]
[1645225939955,0.0032,40068.0,40067.0,0.01053759]
[1645225941456,0.0032,40068.0,40067.0,0.34579059]
[1645225943456,0.0032,40068.0,40067.0,0.01053759]
[1645225944000,0.0032,40068.0,40067.0,0.34579059]
[1645225945800,0.0032,40068.0,40067.0,0.34747153]
[1645225946600,0.0032,40068.0,40067.0,0.01221853]
[1645225946802,0.00037418,40068.0,40067.0,0.01221853]
[1645225947000,0.00037418,40068.0,40067.0,0.34747153]
[1645225947445,0.00037418,40068.0,40067.0,0.01221853]
[1645225948251,0.00037418,40068.0,40067.0,0.34747153]
[1645225951208,0.00292822,40068.0,40067.0,0.01053759]
[1645225951409,0.00292822,40068.0,40067.0,0.34579059]
[1645225952208,0.00292822,40068.0,40067.0,0.01053759]
[1645225952913,0.00292822,40068.0,40067.0,0.34579059]
[1645225953709,0.00254592,40069.0,40067.0,0.34579059]
[1645225955650,0.0027545,40068.0,40067.0,0.01053759]
[1645225955952,0.0027545,40068.0,40067.0,0.34579059]
[1645225959995,0.0027545,40068.0,40067.0,0.38238882]
[1645225960796,0.00254592,40069.0,40067.0,0.38323397]
[1645225962648,0.00254592,40069.0,40067.0,0.34663574]
[1645225964550,0.23143534,40069.0,40067.0,0.01138274]
[1645225965549,0.23143534,40069.0,40068.0,0.00090687]
[1645225965750,0.23111764,40069.0,40068.0,0.00090687]
[1645225966603,0.00222822,40069.0,40068.0,0.00090687]
[1645225967804,0.00222822,40069.0,40068.0,0.33615987]
[1645225968003,0.00222822,40069.0,40068.0,0.00090687]
[1645225968506,0.00222822,40069.0,40068.0,0.44561327]
[1645225969306,0.00222822,40069.0,40068.0,0.44061327]
[1645225969706,0.003287,40077.0,40074.0,0.18616409]
[1645225969945,0.003287,40077.0,40074.0,0.53163609]
[1645225969946,0.00353166,40077.0,40074.0,0.53163609]
[1645225970747,0.00353166,40077.0,40074.0,0.78491476]
[1645225970945,0.003287,40077.0,40074.0,0.78491476]
[1645225971246,0.00334817,40077.0,40074.0,0.78491476]
[1645225972045,0.003287,40077.0,40074.0,0.78491476]
[1645225972246,0.00334817,40077.0,40074.0,0.78491476]
[1645225972445,0.00334817,40077.0,40074.0,0.44966176]
[1645225973246,0.003287,40077.0,40074.0,0.44966176]
[1645225973605,0.00334817,40077.0,40074.0,0.44966176]
[1645225973799,0.00334817,40077.0,40074.0,0.43944276]
[1645225974301,0.00334817,40077.0,40074.0,0.77469576]
[1645225974498,0.003287,40077.0,40074.0,0.77469576]
[1645225974697,0.00334817,40077.0,40074.0,0.77469576]
[1645225974899,0.00334817,40077.0,40074.0,0.78491476]
[1645225975800,0.00334817,40077.0,40074.0,0.78585711]
[1645225975801,0.003287,40077.0,40074.0,0.78585711]
[1645225976000,0.00334817,40077.0,40074.0,0.78585711]
[1645225976800,0.003287,40077.0,40074.0,0.45060411]
[1645225977000,0.003287,40077.0,40074.0,0.78585711]
[1645225977349,0.00334817,40077.0,40074.0,0.78585711]
[1645225977550,0.00334817,40077.0,40074.0,0.44038511]
[1645225977750,0.00334817,40077.0,40074.0,0.18710644]
[1645225978250,0.00334817,40077.0,40074.0,0.52235944]
[1645225979050,0.00334817,40077.0,40074.0,0.18710644]
[1645225979253,0.003287,40077.0,40074.0,0.18710644]
[1645225979452,0.00334817,40077.0,40074.0,0.18710644]
[1645225979850,0.004164,40075.0,40074.0,0.18710644]
[1645225981101,0.00697214,40075.0,40074.0,0.18616409]
[1645225982299,0.00697214,40075.0,40074.0,0.52141709]
[1645225989517,0.00697214,40075.0,40074.0,0.53163609]
[1645225990114,0.00697214,40075.0,40074.0,0.52141709]
[1645225991216,0.00697214,40075.0,40074.0,0.18616409]
[1645225991414,0.004164,40075.0,40074.0,0.18691803]
[1645225991614,0.004164,40075.0,40074.0,0.52217103]
[1645225994157,0.004164,40075.0,40074.0,0.18691803]
[1645225995960,0.004164,40075.0,40074.0,0.18710651]
[1645226000757,0.339417,40075.0,40074.0,0.18710651]
[1645226001261,0.339417,40075.0,40067.0,0.01053759]
[1645226001262,0.021913,40073.0,40067.0,0.01053759]
[1645226001459,0.34011173,40068.0,40067.0,0.01053759]
[1645226001657,0.40255373,40068.0,40067.0,0.01053759]
[1645226001855,0.87343953,40068.0,40062.0,0.020438]
[1645226002054,0.021913,40063.0,40062.0,0.020438]
[1645226002262,0.40240573,40064.0,40063.0,0.02214262]
[1645226002654,0.50240573,40064.0,40063.0,0.02214262]
[1645226003455,0.80240573,40064.0,40062.0,0.020438]
[1645226003711,0.6351,40063.0,40062.0,0.020438]
[1645226005317,0.062454,40060.0,40052.0,0.006744]
[1645226005511,0.6351,40059.0,40052.0,0.006744]
[1645226005910,0.3351,40058.0,40052.0,0.006744]
[1645226006112,0.06731273,40060.0,40052.0,0.006744]
[1645226006313,0.23404629,40053.0,40052.0,0.006744]
[1645226006512,0.23404629,40053.0,40050.0,0.09514127]
[1645226006711,0.23404629,40053.0,40051.0,0.3351]
[1645226007211,0.23404629,40053.0,40050.0,0.09514127]
[1645226007457,0.23404629,40053.0,40049.0,0.54554615]
[1645226007653,0.23404629,40053.0,40049.0,0.3489326]
[1645226007854,0.23404629,40053.0,40049.0,0.54554615]
[1645226008953,0.23404629,40053.0,40050.0,0.3351]
[1645226009154,0.23404629,40053.0,40049.0,0.54554615]
[1645226009354,0.23404629,40053.0,40050.0,0.3351]
[1645226010556,0.00485873,40061.0,40050.0,0.3351]
[1645226010757,0.00485873,40061.0,40049.0,0.54554615]
[1645226010955,0.00485873,40061.0,40050.0,0.06244162]
[1645226011207,0.0016703,40052.0,40051.0,0.3351]
[1645226011406,0.0016703,40052.0,40050.0,0.06244162]
[1645226011607,0.0016703,40052.0,40051.0,0.3351]
[1645226013909,0.0016703,40052.0,40046.0,0.23448957]
[1645226014109,0.0016703,40052.0,40047.0,0.3351]
[1645226015852,0.0016703,40052.0,40047.0,0.397545]
[1645226016256,0.0016703,40052.0,40048.0,0.06244162]
[1645226016454,0.0016703,40052.0,40049.0,0.3351]
[1645226017454,0.0016703,40052.0,40049.0,0.39754]
[1645226017653,0.0016703,40052.0,40049.0,0.3351]
[1645226020902,0.0016703,40052.0,40049.0,0.53531244]
[1645226021401,0.25938604,40056.0,40051.0,0.00242027]
[1645226025762,0.010219,40057.0,40053.0,0.00277572]
[1645226025962,0.010219,40057.0,40054.0,0.3351]
[1645226026208,0.010219,40057.0,40053.0,0.00277572]
[1645226026209,0.127319,40063.0,40053.0,0.00277572]
[1645226026609,0.38406046,40063.0,40053.0,0.21121845]
[1645226027209,0.127319,40063.0,40058.0,2.10190557]
[1645226027411,0.010219,40063.0,40059.0,0.29278108]
[1645226027609,0.010219,40069.0,40059.0,0.72302235]
[1645226027812,0.20034,40070.0,40060.0,0.35]
[1645226028009,0.05031611,40073.0,40061.0,0.3351]
[1645226028208,0.497564,40075.0,40062.0,0.26378591]
[1645226028209,0.00031611,40074.0,40062.0,0.26378591]
[1645226028414,0.69024768,40075.0,40064.0,0.3351]
[1645226028609,0.69024768,40075.0,40064.0,0.062417]
[1645226028610,0.00031611,40074.0,40064.0,0.062417]
[1645226028809,0.45194768,40075.0,40064.0,0.062417]
[1645226029009,0.00031611,40074.0,40064.0,0.062417]
[1645226029209,0.45194768,40075.0,40064.0,0.062417]
[1645226029408,0.00031611,40074.0,40064.0,0.062417]
[1645226029610,0.45194768,40075.0,40064.0,0.062417]
[1645226029863,0.00031611,40074.0,40064.0,0.062417]
[1645226030062,0.45194768,40075.0,40064.0,0.062417]
[1645226030262,0.00031611,40074.0,40064.0,0.062417]
[1645226030464,0.45194768,40075.0,40064.0,0.062417]
[1645226030665,0.00031611,40074.0,40064.0,0.062417]
[1645226030863,0.45194768,40075.0,40064.0,0.062417]
[1645226031166,0.00031611,40074.0,40064.0,0.062417]
[1645226031364,0.45194768,40075.0,40064.0,0.062417]
[1645226031564,0.00031611,40074.0,40064.0,0.062417]
[1645226031766,0.45194768,40075.0,40062.0,0.4010401]
[1645226031965,0.00031611,40074.0,40062.0,0.4010401]
[1645226032165,0.45194768,40075.0,40062.0,0.4010401]
[1645226032366,6.595e-05,40073.0,40062.0,0.4010401]
[1645226032667,0.00038206,40073.0,40062.0,0.4010401]
[1645226032865,6.595e-05,40073.0,40063.0,0.3351]
[1645226033465,0.00031611,40074.0,40062.0,0.4010401]
[1645226033714,6.595e-05,40073.0,40065.0,0.09514127]
[1645226034108,0.00038206,40073.0,40065.0,0.09514127]
[1645226034308,6.595e-05,40073.0,40062.0,0.4010401]
[1645226034509,0.30031611,40074.0,40062.0,0.4010401]
[1645226034709,0.00031611,40073.0,40062.0,0.4010401]
[1645226034908,6.595e-05,40073.0,40062.0,0.3386191]
[1645226035108,0.00038206,40073.0,40063.0,0.3351]
[1645226035310,6.595e-05,40073.0,40064.0,0.3351]
[1645226035508,0.00038206,40073.0,40063.0,0.3]
[1645226035709,0.00031611,40074.0,40063.0,0.3]
[1645226036011,6.595e-05,40073.0,40064.0,0.00414062]
[1645226037009,0.00031611,40074.0,40064.0,0.00414062]
[1645226037209,6.595e-05,40073.0,40064.0,0.00414062]
[1645226037857,6.595e-05,40073.0,40065.0,0.3351]
[1645226038156,0.00031611,40074.0,40064.0,0.00414062]
[1645226038355,0.45163157,40075.0,40064.0,0.00414062]
[1645226038356,6.595e-05,40073.0,40064.0,0.00414062]
[1645226039358,0.00031611,40074.0,40064.0,0.00414062]
[1645226039557,0.45194768,40075.0,40064.0,0.00414062]
[1645226039758,6.595e-05,40073.0,40064.0,0.00414062]
[1645226040559,0.00031611,40074.0,40064.0,0.00414062]
[1645226040759,6.595e-05,40073.0,40064.0,0.00414062]
[1645226040959,0.00068167,40072.0,40063.0,0.3]
[1645226041211,0.00068167,40072.0,40064.0,0.3351]
[1645226041612,0.00068167,40072.0,40063.0,0.3]
[1645226042010,0.00068167,40072.0,40064.0,0.3351]
[1645226043011,0.00068167,40072.0,40069.0,0.26712852]
[1645226043219,0.00068167,40072.0,40071.0,0.43024127]
[1645226043220,1.683e-05,40072.0,40071.0,0.43024127]
[1645226043413,6.595e-05,40073.0,40072.0,0.33712817]
[1645226043611,6.595e-05,40073.0,40072.0,0.00202817]
[1645226044212,0.00100041,40074.0,40072.0,0.00202817]
[1645226045867,0.00031611,40074.0,40072.0,0.00202817]
[1645226046166,0.00422995,40075.0,40072.0,0.00202817]
[1645226046167,0.00454606,40075.0,40072.0,0.00202817]
[1645226046367,0.00031611,40074.0,40072.0,0.00202817]
[1645226046572,0.00448011,40075.0,40072.0,0.00202817]
[1645226046770,0.00031611,40074.0,40072.0,0.00202817]
[1645226047070,0.00448011,40075.0,40072.0,0.00202817]
[1645226047268,0.00031611,40074.0,40072.0,0.00202817]
[1645226047468,0.00448011,40075.0,40072.0,0.00202817]
[1645226049411,0.2018339,40074.0,40072.0,0.00202817]
[1645226049609,0.20215001,40074.0,40072.0,0.00202817]
[1645226050512,0.3351,40073.0,40072.0,0.00202817]
[1645226050711,0.20215001,40074.0,40072.0,0.00202817]
[1645226051312,0.20215001,40074.0,40073.0,0.00241688]
[1645226051511,0.2018339,40074.0,40073.0,0.00241688]
[1645226055665,0.2018339,40074.0,40073.0,0.00269745]
[1645226055866,0.54179263,40074.0,40072.0,0.00343703]
[1645226056129,0.747543,40073.0,40065.0,0.010219]
[1645226056315,0.01288314,40072.0,40060.0,0.28488163]
[1645226056516,0.3351,40068.0,40058.0,0.010219]
[1645226056916,0.21538517,40065.0,40058.0,0.010219]
[1645226057320,0.3351,40064.0,40058.0,0.010219]
[1645226058218,0.3,40063.0,40058.0,0.010219]
[1645226059218,0.31538517,40065.0,40058.0,0.010219]
[1645226060059,0.21538517,40065.0,40058.0,0.010219]
[1645226060259,0.31538517,40065.0,40058.0,0.010219]
[1645226061263,0.31538517,40065.0,40060.0,0.00132516]
[1645226061462,0.21538517,40065.0,40060.0,0.00132516]
[1645226061663,0.1,40065.0,40060.0,0.00132516]
[1645226062664,0.24121805,40064.0,40060.0,0.00132516]
[1645226063716,0.23621805,40064.0,40060.0,0.00132516]
[1645226065918,0.23621805,40064.0,40062.0,0.00253641]
[1645226066819,0.3351,40063.0,40062.0,0.00253641]
[1645226067219,0.23621805,40064.0,40062.0,0.00253641]
[1645226070067,0.3351,40063.0,40062.0,0.00253641]
[1645226070263,0.23621805,40064.0,40062.0,0.00253641]
[1645226070865,0.00195746,40063.0,40058.0,0.010219]
[1645226072315,0.00195746,40063.0,40059.0,0.3351]
[1645226072513,0.00195746,40063.0,40058.0,0.010219]
[1645226072816,0.00195746,40063.0,40059.0,0.3351]
[1645226073016,0.00195746,40063.0,40062.0,0.09514127]
[1645226073214,0.00195746,40063.0,40062.0,0.73024127]
[1645226073415,0.1164,40070.0,40068.0,0.13281999]
[1645226073713,0.25726044,40073.0,40068.0,0.13281999]
[1645226073714,0.3351,40072.0,40068.0,0.13281999]
[1645226074114,0.59989724,40072.0,40068.0,0.13281999]
[1645226074314,0.3351,40071.0,40068.0,0.13281999]
[1645226074614,0.26479724,40072.0,40068.0,0.13281999]
[1645226076764,0.3351,40071.0,40068.0,0.13281999]
[1645226077363,0.26479724,40072.0,40068.0,0.13281999]
[1645226079106,6.044e-05,40073.0,40070.0,0.1]
[1645226079107,0.26479724,40071.0,40070.0,0.1]
[1645226079306,0.26479724,40071.0,40070.0,0.06287206]
[1645226079307,0.59989724,40071.0,40070.0,0.06287206]
[1645226079507,0.3351,40071.0,40070.0,0.06287206]
[1645226080908,0.3351,40071.0,40070.0,0.06693753]
[1645226081311,0.65304271,40071.0,40070.0,0.06693753]
[1645226082368,0.35,40070.0,40068.0,0.13281999]
[1645226082564,0.65290462,40069.0,40068.0,0.13281999]
[1645226082766,0.3351,40069.0,40068.0,0.13281999]
[1645226083567,0.4351,40069.0,40068.0,0.13281999]
[1645226084465,0.4351,40069.0,40068.0,0.13317437]
[1645226089218,0.75288328,40069.0,40068.0,0.13317437]
[1645226089420,0.4351,40069.0,40068.0,0.13317437]
[1645226089618,0.4351,40069.0,40068.0,0.13281999]
[1645226090062,0.75288328,40069.0,40068.0,0.13281999]
[1645226091263,0.4351,40069.0,40068.0,0.13651896]
[1645226091465,0.3351,40069.0,40068.0,0.13651896]
[1645226091663,0.3351,40069.0,40068.0,0.14673796]
[1645226091863,0.3351,40069.0,40068.0,0.13651896]
[1645226092866,0.4351,40069.0,40068.0,0.13651896]
[1645226093267,0.8059858,40069.0,40068.0,0.13651896]
[1645226094223,0.4351,40069.0,40068.0,0.13651896]
[1645226094425,0.55207534,40069.0,40068.0,0.13651896]
[1645226095124,0.35,40068.0,40065.0,0.010219]
[1645226095325,0.76837828,40067.0,40064.0,0.010219]
[1645226095526,0.3,40066.0,40063.0,0.010219]
[1645226095725,0.3,40066.0,40051.0,0.20581355]
[1645226095726,0.31785397,40064.0,40062.0,0.010219]
[1645226095931,0.6351,40063.0,40060.0,0.010219]
[1645226096131,0.5316834,40062.0,40060.0,0.010219]
[1645226096326,0.3351,40061.0,40059.0,0.010219]
[1645226098059,0.59998378,40061.0,40059.0,0.010219]
[1645226098666,0.59998378,40061.0,40058.0,0.020438]
[1645226099261,0.3351,40061.0,40058.0,0.020438]
[1645226101320,0.00126246,40060.0,40058.0,0.020438]
[1645226101514,0.3351,40059.0,40058.0,0.020438]
[1645226101714,0.3351,40059.0,40058.0,0.010219]
[1645226102914,0.00126246,40060.0,40058.0,0.010219]
[1645226103314,0.24230615,40062.0,40058.0,0.010219]
[1645226103514,0.3351,40061.0,40058.0,0.010219]
[1645226106159,0.00374243,40059.0,40058.0,0.010219]
[1645226106359,0.3351,40061.0,40059.0,0.00748486]
[1645226108915,0.3351,40061.0,40060.0,0.08769897]
[1645226109115,0.3351,40061.0,40060.0,0.17539794]
[1645226111219,0.3351,40061.0,40060.0,0.18561694]
[1645226113161,0.3351,40061.0,40060.0,0.17539794]
[1645226120859,0.3351,40061.0,40060.0,0.18561694]
[1645226121262,0.31785397,40066.0,40060.0,0.58075821]
[1645226121462,0.31785397,40068.0,40065.0,0.010219]
[1645226121660,0.31785397,40068.0,40066.0,0.010219]
[1645226121859,0.41785397,40068.0,40066.0,0.010219]
[1645226122061,0.41785397,40068.0,40067.0,0.08769897]
[1645226122859,0.75295397,40068.0,40067.0,0.08769897]
[1645226123060,0.4351,40068.0,40067.0,0.08769897]
[1645226123261,0.75295397,40068.0,40067.0,0.08769897]
[1645226125219,0.80592839,40068.0,40067.0,0.08769897]
[1645226125420,0.5049494,40068.0,40067.0,0.08769897]
[1645226127121,0.5049494,40068.0,40067.0,0.17539794]
[1645226129367,0.80603062,40068.0,40067.0,0.17539794]
[1645226130467,0.50154935,40068.0,40067.0,0.17539794]
[1645226131318,0.5042629,40068.0,40067.0,0.17539794]
[1645226132117,0.808747,40068.0,40067.0,0.17539794]
[1645226132417,0.80874684,40068.0,40067.0,0.17539794]
[1645226133018,0.82363001,40068.0,40067.0,0.17539794]
[1645226133220,0.51914917,40068.0,40067.0,0.17539794]
[1645226134118,0.82363163,40068.0,40067.0,0.17539794]
[1645226134718,0.5255235,40068.0,40067.0,0.17539794]
[1645226135164,0.5755235,40068.0,40067.0,0.17539794]
[1645226136264,0.5255235,40068.0,40067.0,0.17539794]
[1645226136461,0.5255235,40068.0,40067.0,0.18561694]
[1645226136662,0.80876243,40068.0,40067.0,0.18561694]
[1645226137160,0.43781355,40068.0,40067.0,0.18561694]
[1645226139515,0.43781355,40068.0,40067.0,0.09791797]
[1645226139718,0.43781355,40068.0,40067.0,0.14883241]
[1645226140116,0.43781355,40068.0,40067.0,0.13861341]
[1645226140718,0.43781355,40068.0,40067.0,0.14883241]
[1645226141218,0.33781355,40068.0,40067.0,0.14883241]
[1645226141422,0.31790886,40069.0,40067.0,0.55657199]
[1645226141622,0.31790886,40071.0,40068.0,0.310219]
[1645226141820,0.31790886,40071.0,40070.0,0.010219]
[1645226142020,0.31790886,40071.0,40070.0,0.320319]
[1645226142221,0.31796924,40073.0,40071.0,1.16080808]
[1645226142466,0.31796924,40073.0,40071.0,0.82576208]
[1645226142765,0.31790886,40073.0,40071.0,0.82576208]
[1645226143165,0.31796924,40074.0,40071.0,0.82576208]
[1645226143564,0.31796924,40074.0,40071.0,0.56537403]
[1645226143565,0.65295486,40073.0,40071.0,0.56537403]
[1645226143767,0.70599488,40073.0,40071.0,0.56537403]
[1645226144165,0.335046,40073.0,40071.0,0.56537403]
[1645226144464,0.70599488,40073.0,40071.0,0.56537403]
[1645226145065,0.335046,40073.0,40072.0,0.05091444]
[1645226145264,0.70589905,40073.0,40072.0,0.05091444]
[1645226145468,0.76833405,40073.0,40072.0,0.05091444]
[1645226146120,0.76833405,40073.0,40072.0,0.05226705]
[1645226146316,0.96714965,40073.0,40072.0,0.05226705]
[1645226146619,0.5838616,40073.0,40072.0,0.05226705]
[1645226146817,0.6338616,40073.0,40072.0,0.0327661]
[1645226147216,0.6506636,40073.0,40072.0,0.12046507]
[1645226147417,0.35,40072.0,40071.0,0.56537403]
[1645226147619,0.46869433,40072.0,40071.0,0.56537403]
[1645226147818,0.57484463,40072.0,40071.0,0.56537403]
[1645226148416,0.58549633,40072.0,40071.0,0.56537403]
[1645226148818,0.68549633,40072.0,40071.0,0.56537403]
[1645226149721,0.68659633,40072.0,40059.0,0.01361586]
[1645226149969,0.25138966,40061.0,40059.0,0.01361586]
[1645226150168,0.58643566,40061.0,40059.0,0.00748486]
[1645226151370,0.335046,40061.0,40059.0,0.00748486]
[1645226152071,0.1,40062.0,40059.0,0.00748486]
[1645226152269,0.335046,40061.0,40059.0,0.00748486]
[1645226152469,0.062451,40063.0,40059.0,0.00748486]
[1645226152669,0.335046,40062.0,40059.0,0.00748486]
[1645226152870,0.435046,40062.0,40059.0,0.00748486]
[1645226153271,0.1,40062.0,40059.0,0.00748486]